[Event "Snabb-SM för veteraner, 50+ 2019"]
[Site "Schackcentrum, Vegagatan 20, Gothenburg, Sweden"]
[Date "2019.10.05"]
[Round "2.7"]
[White "Svenn, Matti"]
[Black "Karlsson, Ulf"]
[Result "1-0"]
[TimeControl "15 minutes + 10 seconds per move from move one"]
[WhiteFideId "1705091"]
[BlackFideId "1721674"]
[WhiteElo "2195"]
[BlackElo "2035"]

1. e4 {[%clk 00:15:19]} c5 {[%clk 00:15:16]} {[%emt 00:00:05]} 2. Nf3 {[%clk
00:15:27]} {[%emt 00:00:01]} Nc6 {[%clk 00:15:24]} {[%emt 00:00:02]} 3. d4
{[%clk 00:15:36]} cxd4 {[%clk 00:15:33]} {[%emt 00:00:01]} 4. Nxd4 {[%clk
00:15:45]} {[%emt 00:00:02]} e5 {[%clk 00:15:42]} 5. Nb5 {[%clk 00:15:47]}
{[%emt 00:00:07]} d6 {[%clk 00:15:51]} {[%emt 00:00:01]} 6. c4 {[%clk
00:15:55]} {[%emt 00:00:02]} Be7 {[%clk 00:15:58]} {[%emt 00:00:03]} 7. Be2
{[%clk 00:16:04]} {[%emt 00:00:01]} f5 {[%clk 00:15:52]} {[%emt 00:00:17]} 8.
exf5 {[%clk 00:16:02]} {[%emt 00:00:12]} Bxf5 {[%clk 00:16:00]} {[%emt
00:00:02]} 9. O-O {[%clk 00:16:10]} {[%emt 00:00:01]} Nf6 {[%clk 00:16:04]}
{[%emt 00:00:06]} 10. N1c3 {[%clk 00:16:14]} {[%emt 00:00:05]} a6 {[%clk
00:16:11]} {[%emt 00:00:04]} 11. Na3 {[%clk 00:16:23]} {[%emt 00:00:01]} O-O
{[%clk 00:16:18]} {[%emt 00:00:03]} 12. Nc2 {[%clk 00:16:30]} {[%emt 00:00:02]}
Qd7 {[%clk 00:15:32]} {[%emt 00:00:57]} 13. Ne3 {[%clk 00:16:35]} {[%emt
00:00:05]} Be6 {[%clk 00:15:34]} {[%emt 00:00:08]} 14. Ned5 {[%clk 00:16:00]}
{[%emt 00:00:44]} Bd8 {[%clk 00:15:32]} {[%emt 00:00:13]} 15. Be3 {[%clk
00:16:06]} {[%emt 00:00:04]} Ne7 {[%clk 00:12:07]} {[%emt 00:03:35]} 16. Nxf6+
{[%clk 00:13:42]} {[%emt 00:02:33]} gxf6 {[%clk 00:11:30]} {[%emt 00:00:47]} 17.
f4 {[%clk 00:10:34]} {[%emt 00:03:18]} f5 {[%clk 00:08:57]} {[%emt 00:02:44]}
18. c5 {[%clk 00:08:45]} {[%emt 00:01:59]} e4 {[%clk 00:07:25]} {[%emt
00:01:42]} 19. cxd6 {[%clk 00:08:38]} {[%emt 00:00:17]} Nc6 {[%clk 00:06:19]}
{[%emt 00:01:16]} 20. Nd5 {[%clk 00:07:44]} {[%emt 00:01:04]} Rf7 {[%clk
00:05:35]} {[%emt 00:00:53]} 21. Nb6 {[%clk 00:07:23]} {[%emt 00:00:31]} Bxb6
{[%clk 00:05:07]} {[%emt 00:00:39]} 22. Bxb6 {[%clk 00:07:31]} {[%emt
00:00:02]} Nb4 {[%clk 00:04:50]} {[%emt 00:00:27]} 23. Rc1 {[%clk 00:06:25]}
{[%emt 00:01:15]} Nd5 {[%clk 00:04:18]} {[%emt 00:00:42]} 24. Qd4 {[%clk
00:06:02]} {[%emt 00:00:33]} Rg7 {[%clk 00:03:57]} {[%emt 00:00:31]} 25. Bc4
{[%clk 00:05:03]} {[%emt 00:01:09]} Nxb6 {[%clk 00:03:08]} {[%emt 00:01:00]} 26.
Qxb6 {[%clk 00:05:06]} {[%emt 00:00:06]} Bxc4 {[%clk 00:01:44]} {[%emt
00:01:34]} 27. Rxc4 {[%clk 00:05:14]} {[%emt 00:00:02]} Rd8 {[%clk 00:01:53]}
{[%emt 00:00:02]} 28. Rd1 {[%clk 00:05:09]} {[%emt 00:00:14]} Rc8 {[%clk
00:01:06]} {[%emt 00:00:58]} 29. Rxc8+ {[%clk 00:04:07]} {[%emt 00:01:12]} Qxc8
{[%clk 00:01:15]} 30. d7 {[%clk 00:04:14]} {[%emt 00:00:03]} 1-0

[Event "Snabb-SM för veteraner, 50+ 2019"]
[Site "Schackcentrum, Vegagatan 20, Gothenburg, Sweden"]
[Date "2019.10.05"]
[Round "2.8"]
[White "Holst, Conny"]
[Black "Frisk, Hans"]
[Result "1-0"]
[TimeControl "15 minutes + 10 seconds per move from move one"]
[WhiteFideId "1701428"]
[BlackFideId "1708570"]
[WhiteElo "2166"]
[BlackElo "1948"]

1. d4 {[%clk 00:15:15]} {[%emt 00:00:03]} Nf6 {[%clk 00:15:16]} {[%emt
00:00:05]} 2. c4 {[%clk 00:15:22]} {[%emt 00:00:03]} e6 {[%clk 00:15:24]}
{[%emt 00:00:02]} 3. Nc3 {[%clk 00:15:30]} {[%emt 00:00:03]} Bb4 {[%clk
00:15:32]} {[%emt 00:00:02]} 4. e3 {[%clk 00:15:36]} {[%emt 00:00:04]} O-O
{[%clk 00:15:38]} {[%emt 00:00:04]} 5. Bd3 {[%clk 00:15:42]} {[%emt 00:00:04]}
d5 {[%clk 00:15:45]} {[%emt 00:00:03]} 6. Nge2 {[%clk 00:15:10]} {[%emt
00:00:42]} dxc4 {[%clk 00:13:27]} {[%emt 00:02:28]} 7. Bxc4 {[%clk 00:15:16]}
{[%emt 00:00:04]} c5 {[%clk 00:13:02]} {[%emt 00:00:35]} 8. O-O {[%clk
00:14:29]} {[%emt 00:00:55]} Nc6 {[%clk 00:11:05]} {[%emt 00:02:10]} 9. a3
{[%clk 00:13:29]} {[%emt 00:01:10]} Bxc3 {[%clk 00:09:56]} {[%emt 00:01:18]} 10.
bxc3 {[%clk 00:13:26]} {[%emt 00:00:13]} Na5 {[%clk 00:08:25]} {[%emt
00:01:41]} 11. Ba2 {[%clk 00:13:09]} {[%emt 00:00:26]} c4 {[%clk 00:06:33]}
{[%emt 00:02:02]} 12. f3 {[%clk 00:12:15]} {[%emt 00:01:04]} Bd7 {[%clk
00:06:07]} {[%emt 00:00:36]} 13. e4 {[%clk 00:12:11]} {[%emt 00:00:13]} Bc6
{[%clk 00:05:44]} {[%emt 00:00:34]} 14. Bg5 {[%clk 00:11:22]} {[%emt 00:00:59]}
Qd7 {[%clk 00:05:37]} {[%emt 00:00:16]} 15. Bxf6 {[%clk 00:11:04]} {[%emt
00:00:29]} gxf6 {[%clk 00:05:46]} 16. Ng3 {[%clk 00:10:34]} {[%emt 00:00:40]}
Kh8 {[%clk 00:04:53]} {[%emt 00:01:03]} 17. Qd2 {[%clk 00:10:04]} {[%emt
00:00:41]} Rg8 {[%clk 00:04:45]} {[%emt 00:00:17]} 18. Rad1 {[%clk 00:09:16]}
{[%emt 00:00:57]} Rad8 {[%clk 00:04:24]} {[%emt 00:00:31]} 19. Bb1 {[%clk
00:07:55]} {[%emt 00:01:32]} Qd6 {[%clk 00:03:04]} {[%emt 00:01:31]} 20. e5
{[%clk 00:07:10]} {[%emt 00:00:54]} fxe5 {[%clk 00:02:57]} {[%emt 00:00:16]} 21.
Qh6 {[%clk 00:07:16]} {[%emt 00:00:05]} Rg6 {[%clk 00:02:35]} {[%emt 00:00:32]}
22. Bxg6 {[%clk 00:07:11]} {[%emt 00:00:14]} fxg6 {[%clk 00:02:44]} 23. Ne4
{[%clk 00:06:15]} {[%emt 00:01:08]} Qxa3 {[%clk 00:01:23]} {[%emt 00:01:31]} 24.
dxe5 {[%clk 00:05:39]} {[%emt 00:00:46]} Qe7 {[%clk 00:01:02]} {[%emt
00:00:31]} 25. Nf6 {[%clk 00:05:04]} {[%emt 00:00:45]} Rd3 {[%clk 00:01:03]}
{[%emt 00:00:09]} 26. Ra1 {[%clk 00:04:23]} {[%emt 00:00:51]} b6 {[%clk
00:00:55]} {[%emt 00:00:18]} 27. Rfb1 {[%clk 00:04:02]} {[%emt 00:00:31]} 1-0

[Event "Snabb-SM för veteraner, 50+ 2019"]
[Site "Schackcentrum, Vegagatan 20, Gothenburg, Sweden"]
[Date "2019.10.05"]
[Round "2.9"]
[White "Bergre, Joachim"]
[Black "Kirppo, Ronny"]
[Result "1-0"]
[TimeControl "15 minutes + 10 seconds per move from move one"]
[WhiteFideId "1704893"]
[BlackFideId "1724681"]
[WhiteElo "2035"]
[BlackElo "1877"]

1. Nf3 {[%clk 00:15:16]} {[%emt 00:00:02]} Nf6 {[%clk 00:15:18]} {[%emt
00:00:03]} 2. c4 {[%clk 00:15:20]} {[%emt 00:00:06]} b6 {[%clk 00:15:07]}
{[%emt 00:00:21]} 3. g3 {[%clk 00:15:23]} {[%emt 00:00:07]} Bb7 {[%clk
00:15:16]} {[%emt 00:00:02]} 4. Bg2 {[%clk 00:15:31]} {[%emt 00:00:02]} e6
{[%clk 00:15:21]} {[%emt 00:00:05]} 5. O-O {[%clk 00:15:23]} {[%emt 00:00:15]}
Be7 {[%clk 00:15:21]} {[%emt 00:00:12]} 6. b3 {[%clk 00:14:39]} {[%emt
00:00:54]} O-O {[%clk 00:14:10]} {[%emt 00:01:20]} 7. Bb2 {[%clk 00:14:33]}
{[%emt 00:00:16]} c5 {[%clk 00:13:07]} {[%emt 00:01:13]} 8. e3 {[%clk
00:14:17]} {[%emt 00:00:26]} Nc6 {[%clk 00:10:53]} {[%emt 00:02:25]} 9. d4
{[%clk 00:12:55]} {[%emt 00:01:31]} d5 {[%clk 00:08:42]} {[%emt 00:02:21]} 10.
Nbd2 {[%clk 00:12:00]} {[%emt 00:01:06]} cxd4 {[%clk 00:07:52]} {[%emt
00:01:00]} 11. Nxd4 {[%clk 00:11:55]} {[%emt 00:00:14]} Rc8 {[%clk 00:06:59]}
{[%emt 00:01:04]} 12. Rc1 {[%clk 00:11:17]} {[%emt 00:00:47]} Nxd4 {[%clk
00:06:27]} {[%emt 00:00:43]} 13. Bxd4 {[%clk 00:11:13]} {[%emt 00:00:13]} Qd7
{[%clk 00:06:24]} {[%emt 00:00:14]} 14. Qe2 {[%clk 00:09:55]} {[%emt 00:01:28]}
Ba6 {[%clk 00:05:02]} {[%emt 00:01:33]} 15. Rfd1 {[%clk 00:09:45]} {[%emt
00:00:20]} Rfd8 {[%clk 00:04:59]} {[%emt 00:00:13]} 16. Bb2 {[%clk 00:09:29]}
{[%emt 00:00:25]} Qe8 {[%clk 00:03:49]} {[%emt 00:01:21]} 17. Bf1 {[%clk
00:08:40]} {[%emt 00:00:58]} h6 {[%clk 00:03:46]} {[%emt 00:00:13]} 18. Qe1
{[%clk 00:06:51]} {[%emt 00:01:59]} dxc4 {[%clk 00:02:30]} {[%emt 00:01:27]} 19.
Nxc4 {[%clk 00:06:48]} {[%emt 00:00:12]} Nd5 {[%clk 00:02:28]} {[%emt
00:00:13]} 20. e4 {[%clk 00:06:05]} {[%emt 00:00:52]} Bb4 {[%clk 00:02:30]}
{[%emt 00:00:08]} 21. Qe2 {[%clk 00:05:48]} {[%emt 00:00:27]} Ne7 {[%clk
00:01:56]} {[%emt 00:00:44]} 22. a3 {[%clk 00:05:35]} {[%emt 00:00:23]} Bc5
{[%clk 00:01:10]} {[%emt 00:00:56]} 23. b4 {[%clk 00:05:22]} {[%emt 00:00:24]}
Bxc4 {[%clk 00:00:25]} {[%emt 00:00:54]} 24. Rxc4 {[%clk 00:05:25]} {[%emt
00:00:08]} Bd6 {[%clk 00:00:25]} {[%emt 00:00:10]} 25. Rcd4 {[%clk 00:03:46]}
{[%emt 00:01:48]} Bb8 {[%clk 00:00:24]} {[%emt 00:00:12]} 26. Qd2 {[%clk
00:03:02]} {[%emt 00:00:54]} Rxd4 {[%clk 00:00:28]} {[%emt 00:00:07]} 27. Qxd4
{[%clk 00:03:10]} {[%emt 00:00:01]} Ng6 {[%clk 00:00:33]} {[%emt 00:00:05]} 28.
Qxg7# {[%emt 00:00:04]} 1-0

[Event "Snabb-SM för veteraner, 50+ 2019"]
[Site "Schackcentrum, Vegagatan 20, Gothenburg, Sweden"]
[Date "2019.10.05"]
[Round "2.10"]
[White "Wesslen, Ulf"]
[Black "Moller, Mikael"]
[Result "1-0"]
[TimeControl "15 minutes + 10 seconds per move from move one"]
[WhiteFideId "1705199"]
[BlackFideId "1738461"]
[WhiteElo "1971"]
[BlackElo "1826"]

1. d4 {[%clk 00:15:17]} {[%emt 00:00:01]} d6 {[%clk 00:15:13]} {[%emt
00:00:08]} 2. c4 {[%clk 00:15:00]} {[%emt 00:00:27]} g6 {[%clk 00:15:21]}
{[%emt 00:00:02]} 3. Nc3 {[%clk 00:14:54]} {[%emt 00:00:16]} Bg7 {[%clk
00:15:29]} {[%emt 00:00:02]} 4. e4 {[%clk 00:13:56]} {[%emt 00:01:08]} c5
{[%clk 00:15:10]} {[%emt 00:00:29]} 5. d5 {[%clk 00:13:46]} {[%emt 00:00:20]}
e5 {[%clk 00:15:15]} {[%emt 00:00:05]} 6. dxe6 {[%clk 00:13:01]} {[%emt
00:00:54]} Bxc3+ {[%clk 00:15:10]} {[%emt 00:00:15]} 7. bxc3 {[%clk 00:13:01]}
{[%emt 00:00:11]} fxe6 {[%clk 00:14:53]} {[%emt 00:00:27]} 8. Nf3 {[%clk
00:11:40]} {[%emt 00:01:31]} Nc6 {[%clk 00:14:56]} {[%emt 00:00:06]} 9. Bg5
{[%clk 00:10:57]} {[%emt 00:00:54]} Nf6 {[%clk 00:14:52]} {[%emt 00:00:14]} 10.
e5 {[%clk 00:09:45]} {[%emt 00:01:22]} Qa5 {[%clk 00:12:59]} {[%emt 00:02:02]}
11. Bxf6 {[%clk 00:09:10]} {[%emt 00:00:45]} Qxc3+ {[%clk 00:13:05]} {[%emt
00:00:04]} 12. Nd2 {[%clk 00:09:19]} {[%emt 00:00:01]} 1-0

[Event "Snabb-SM för veteraner, 50+ 2019"]
[Site "Schackcentrum, Vegagatan 20, Gothenburg, Sweden"]
[Date "2019.10.05"]
[Round "2.11"]
[White "Ansner, Bjorn"]
[Black "Torell, Torsten"]
[Result "1-0"]
[TimeControl "15 minutes + 10 seconds per move from move one"]
[WhiteFideId "1702769"]
[BlackFideId "1723839"]
[WhiteElo "1934"]
[BlackElo "1708"]

1. d4 {[%clk 00:15:16]} {[%emt 00:00:03]} d5 {[%clk 00:15:13]} {[%emt
00:00:07]} 2. Nf3 {[%clk 00:15:06]} {[%emt 00:00:19]} Nf6 {[%clk 00:15:12]}
{[%emt 00:00:12]} 3. Bf4 {[%clk 00:15:12]} {[%emt 00:00:04]} c5 {[%clk
00:14:33]} {[%emt 00:00:49]} 4. e3 {[%clk 00:14:09]} {[%emt 00:01:12]} Nc6
{[%clk 00:14:17]} {[%emt 00:00:27]} 5. c3 {[%clk 00:14:04]} {[%emt 00:00:15]}
e6 {[%clk 00:13:58]} {[%emt 00:00:29]} 6. Bd3 {[%clk 00:14:01]} {[%emt
00:00:12]} Bd6 {[%clk 00:14:00]} {[%emt 00:00:09]} 7. Bg3 {[%clk 00:13:39]}
{[%emt 00:00:32]} O-O {[%clk 00:13:55]} {[%emt 00:00:15]} 8. Nbd2 {[%clk
00:13:45]} {[%emt 00:00:04]} b6 {[%clk 00:13:46]} {[%emt 00:00:19]} 9. Ne5
{[%clk 00:13:17]} {[%emt 00:00:36]} Bb7 {[%clk 00:12:39]} {[%emt 00:01:18]} 10.
f4 {[%clk 00:13:07]} {[%emt 00:00:19]} Ne7 {[%clk 00:10:52]} {[%emt 00:01:58]}
11. Qf3 {[%clk 00:10:06]} {[%emt 00:03:12]} Rc8 {[%clk 00:09:37]} {[%emt
00:01:25]} 12. O-O {[%clk 00:09:51]} {[%emt 00:00:25]} c4 {[%clk 00:07:53]}
{[%emt 00:01:55]} 13. Bc2 {[%clk 00:09:44]} {[%emt 00:00:16]} b5 {[%clk
00:08:00]} {[%emt 00:00:02]} 14. f5 {[%clk 00:08:53]} {[%emt 00:01:01]} b4
{[%clk 00:06:50]} {[%emt 00:01:21]} 15. Bh4 {[%clk 00:07:44]} {[%emt 00:01:18]}
bxc3 {[%clk 00:06:10]} {[%emt 00:00:51]} 16. bxc3 {[%clk 00:07:25]} {[%emt
00:00:28]} Bxe5 {[%clk 00:04:11]} {[%emt 00:02:09]} 17. dxe5 {[%clk 00:07:20]}
{[%emt 00:00:15]} Nd7 {[%clk 00:04:01]} {[%emt 00:00:21]} 18. Qg3 {[%clk
00:06:05]} {[%emt 00:01:24]} Kh8 {[%clk 00:02:19]} {[%emt 00:01:53]} 19. f6
{[%clk 00:03:27]} {[%emt 00:02:48]} gxf6 {[%clk 00:02:15]} {[%emt 00:00:14]} 20.
Bxf6+ {[%clk 00:02:45]} {[%emt 00:00:51]} Nxf6 {[%clk 00:02:22]} {[%emt
00:00:04]} 21. Rxf6 {[%clk 00:02:41]} {[%emt 00:00:13]} Ng6 {[%clk 00:02:02]}
{[%emt 00:00:29]} 22. Raf1 {[%clk 00:02:37]} {[%emt 00:00:15]} Rc7 {[%clk
00:01:27]} {[%emt 00:00:46]} 23. h4 {[%clk 00:02:37]} {[%emt 00:00:08]} Rg8
{[%emt 00:01:28]} 1-0

[Event "Snabb-SM för veteraner, 50+ 2019"]
[Site "Schackcentrum, Vegagatan 20, Gothenburg, Sweden"]
[Date "2019.10.05"]
[Round "3.1"]
[White "Andreasson, Ingvar"]
[Black "Sigeman, Johan"]
[Result "1-0"]
[TimeControl "15 minutes + 10 seconds per move from move one"]
[WhiteFideId "1700294"]
[BlackFideId "1705601"]
[WhiteElo "2413"]
[BlackElo "2100"]

1. Nf3 {[%clk 00:15:12]} {[%emt 00:00:06]} Nf6 {[%clk 00:15:15]} {[%emt
00:00:06]} 2. c4 {[%clk 00:15:18]} {[%emt 00:00:05]} e6 {[%clk 00:15:21]}
{[%emt 00:00:04]} 3. e3 {[%clk 00:15:25]} {[%emt 00:00:03]} d5 {[%clk
00:15:22]} {[%emt 00:00:09]} 4. b3 {[%clk 00:15:33]} {[%emt 00:00:02]} Be7
{[%clk 00:15:19]} {[%emt 00:00:12]} 5. Bb2 {[%clk 00:15:12]} {[%emt 00:00:32]}
O-O {[%clk 00:15:11]} {[%emt 00:00:18]} 6. Nc3 {[%clk 00:15:06]} {[%emt
00:00:16]} c5 {[%clk 00:13:42]} {[%emt 00:01:40]} 7. cxd5 {[%clk 00:14:11]}
{[%emt 00:01:04]} exd5 {[%clk 00:13:33]} {[%emt 00:00:19]} 8. d4 {[%clk
00:14:16]} {[%emt 00:00:04]} cxd4 {[%clk 00:13:06]} {[%emt 00:00:37]} 9. Nxd4
{[%clk 00:14:22]} {[%emt 00:00:04]} Nc6 {[%clk 00:13:07]} {[%emt 00:00:09]} 10.
Be2 {[%clk 00:14:27]} {[%emt 00:00:04]} Bd6 {[%clk 00:12:07]} {[%emt 00:01:11]}
11. O-O {[%clk 00:14:11]} {[%emt 00:00:26]} Re8 {[%clk 00:11:32]} {[%emt
00:00:46]} 12. Rc1 {[%clk 00:10:56]} {[%emt 00:03:24]} Ne5 {[%clk 00:08:18]}
{[%emt 00:03:25]} 13. Ncb5 {[%clk 00:10:34]} {[%emt 00:00:32]} Bb8 {[%clk
00:08:17]} {[%emt 00:00:11]} 14. Qc2 {[%clk 00:10:11]} {[%emt 00:00:31]} Bg4
{[%clk 00:06:07]} {[%emt 00:02:21]} 15. f3 {[%clk 00:10:20]} {[%emt 00:00:01]}
Bd7 {[%clk 00:05:21]} {[%emt 00:00:56]} 16. Nc7 {[%clk 00:10:24]} {[%emt
00:00:07]} Bxc7 {[%clk 00:05:14]} {[%emt 00:00:17]} 17. Qxc7 {[%clk 00:10:33]}
Qe7 {[%clk 00:05:02]} {[%emt 00:00:22]} 18. Qxb7 {[%clk 00:09:38]} {[%emt
00:01:05]} Reb8 {[%clk 00:04:32]} {[%emt 00:00:40]} 19. Qc7 {[%clk 00:09:05]}
{[%emt 00:00:42]} Nc4 {[%clk 00:03:04]} {[%emt 00:01:39]} 20. Bxc4 {[%clk
00:05:34]} {[%emt 00:03:41]} Qxe3+ {[%clk 00:03:08]} {[%emt 00:00:07]} 21. Kh1
{[%clk 00:05:34]} {[%emt 00:00:09]} dxc4 {[%clk 00:03:15]} {[%emt 00:00:04]} 22.
Qxc4 {[%clk 00:03:36]} {[%emt 00:02:08]} Rc8 {[%clk 00:02:50]} {[%emt
00:00:36]} 23. Qe2 {[%clk 00:03:32]} {[%emt 00:00:12]} Nd5 {[%clk 00:02:49]}
{[%emt 00:00:12]} 24. Qxe3 {[%clk 00:03:22]} {[%emt 00:00:20]} Nxe3 {[%clk
00:02:58]} {[%emt 00:00:02]} 25. Rfe1 {[%clk 00:03:30]} {[%emt 00:00:02]} Nd5
{[%clk 00:02:42]} {[%emt 00:00:26]} 26. g3 {[%clk 00:03:21]} {[%emt 00:00:19]}
h6 {[%clk 00:02:42]} {[%emt 00:00:11]} 27. Kg2 {[%clk 00:03:28]} {[%emt
00:00:02]} f6 {[%clk 00:02:29]} {[%emt 00:00:24]} 28. a3 {[%clk 00:02:33]}
{[%emt 00:01:05]} Kf7 {[%clk 00:02:34]} {[%emt 00:00:05]} 29. Kf2 {[%clk
00:02:37]} {[%emt 00:00:05]} Rab8 {[%clk 00:02:39]} {[%emt 00:00:06]} 30. Red1
{[%clk 00:02:32]} {[%emt 00:00:14]} Nb6 {[%clk 00:02:18]} {[%emt 00:00:33]} 31.
Rxc8 {[%clk 00:01:57]} {[%emt 00:00:44]} Rxc8 {[%clk 00:02:26]} {[%emt
00:00:03]} 32. h4 {[%clk 00:01:49]} {[%emt 00:00:17]} Rc5 {[%clk 00:02:13]}
{[%emt 00:00:23]} 33. Rc1 {[%clk 00:01:47]} {[%emt 00:00:12]} Rxc1 {[%clk
00:02:05]} {[%emt 00:00:19]} 34. Bxc1 {[%clk 00:01:56]} Ke7 {[%clk 00:02:13]}
{[%emt 00:00:02]} 35. Bd2 {[%clk 00:01:49]} {[%emt 00:00:17]} Nd5 {[%clk
00:02:19]} {[%emt 00:00:05]} 36. h5 {[%clk 00:01:46]} {[%emt 00:00:12]} Kd6
{[%clk 00:02:12]} {[%emt 00:00:17]} 37. Ke2 {[%clk 00:01:54]} {[%emt 00:00:01]}
Ne7 {[%clk 00:01:58]} {[%emt 00:00:24]} 38. Bb4+ {[%clk 00:01:55]} {[%emt
00:00:09]} Kd5 {[%clk 00:02:00]} {[%emt 00:00:09]} 39. Bxe7 {[%clk 00:02:00]}
{[%emt 00:00:04]} Kxd4 {[%clk 00:02:08]} {[%emt 00:00:03]} 40. Bf8 {[%clk
00:02:08]} {[%emt 00:00:02]} Be8 {[%clk 00:01:59]} {[%emt 00:00:19]} 41. Bxg7
{[%clk 00:02:12]} {[%emt 00:00:06]} Bxh5 {[%clk 00:01:54]} {[%emt 00:00:15]} 42.
Bxf6+ {[%clk 00:02:19]} {[%emt 00:00:03]} Kd5 {[%clk 00:02:01]} {[%emt
00:00:03]} 43. Bg7 {[%clk 00:02:25]} {[%emt 00:00:04]} Bf7 {[%clk 00:01:55]}
{[%emt 00:00:16]} 44. Bxh6 {[%clk 00:02:29]} {[%emt 00:00:06]} Kd4 {[%clk
00:02:04]} 45. b4 {[%clk 00:02:36]} {[%emt 00:00:05]} Bc4+ {[%clk 00:02:08]}
{[%emt 00:00:06]} 46. Kf2 {[%clk 00:02:44]} {[%emt 00:00:02]} 1-0